[Event "Torneo Nuevo Centro. Jornada 11"]
[Site "Chess.com"]
[Date "2020.08.28"]
[Round "5"]
[White "Beneyto de Ramon, Guillermo"]
[Black "Martínez Escandell, Alfonso"]
[Result "1/2-1/2"]
[WhiteElo "1653"]
[BlackElo "1910"]
[TimeControl "180+2"]
[EndTime "11:22:54 PDT"]
[Termination "Tablas por rey ahogado"]

1. c4 {[%clk 0:03:01.5]} 1... c5 {[%clk 0:03:00.5]} 2. Nc3 {[%clk 0:03:00.9]}
2... g6 {[%clk 0:03:00.9]} 3. g3 {[%clk 0:03:01.8]} 3... Bg7 {[%clk 0:03:01.7]}
4. Bg2 {[%clk 0:03:02.8]} 4... e6 {[%clk 0:03:02.4]} 5. d3 {[%clk 0:03:03.5]}
5... Ne7 {[%clk 0:03:03.1]} 6. Nf3 {[%clk 0:03:04.1]} 6... O-O {[%clk
0:03:04.4]} 7. O-O {[%clk 0:03:05.1]} 7... Nbc6 {[%clk 0:03:04.5]} 8. Bf4 {[%clk
0:03:05.5]} 8... a6 {[%clk 0:03:05.4]} 9. a3 {[%clk 0:03:03]} 9... d5 {[%clk
0:03:05.9]} 10. cxd5 {[%clk 0:03:03.3]} 10... Nxd5 {[%clk 0:03:07.8]} 11. Nxd5
{[%clk 0:03:02.9]} 11... exd5 {[%clk 0:03:07.2]} 12. Rb1 {[%clk 0:03:03.7]}
12... Be6 {[%clk 0:03:02]} 13. b4 {[%clk 0:03:02.5]} 13... cxb4 {[%clk
0:02:59.5]} 14. axb4 {[%clk 0:03:03.8]} 14... Qc8 {[%clk 0:02:46.9]} 15. d4
{[%clk 0:02:59.3]} 15... Re8 {[%clk 0:02:39]} 16. Ne5 {[%clk 0:02:59.5]} 16...
Nxe5 {[%clk 0:02:37.8]} 17. dxe5 {[%clk 0:02:57.9]} 17... Bf8 {[%clk 0:02:34.7]}
18. Rc1 {[%clk 0:02:57.8]} 18... Qd7 {[%clk 0:02:32.3]} 19. Qb3 {[%clk
0:02:51.7]} 19... Rac8 {[%clk 0:02:19.2]} 20. Rxc8 {[%clk 0:02:48.6]} 20... Rxc8
{[%clk 0:02:19.8]} 21. Qd3 {[%clk 0:02:42.8]} 21... Bxb4 {[%clk 0:02:18.2]} 22.
Rd1 {[%clk 0:02:43]} 22... Rd8 {[%clk 0:02:18.6]} 23. Bg5 {[%clk 0:02:26.5]}
23... Be7 {[%clk 0:02:06.4]} 24. Bxe7 {[%clk 0:02:22.4]} 24... Qxe7 {[%clk
0:02:06.9]} 25. e4 {[%clk 0:02:22.7]} 25... Bc8 {[%clk 0:01:53.8]} 26. exd5
{[%clk 0:02:18.7]} 26... Qxe5 {[%clk 0:01:54]} 27. Qc2 {[%clk 0:02:09.7]} 27...
Bf5 {[%clk 0:01:43.1]} 28. Qc1 {[%clk 0:02:06.4]} 28... Qd6 {[%clk 0:01:31.9]}
29. h3 {[%clk 0:01:54.2]} 29... h5 {[%clk 0:01:31.8]} 30. Qg5 {[%clk 0:01:46.5]}
30... Re8 {[%clk 0:01:09.9]} 31. Qf4 {[%clk 0:01:45.2]} 31... Qxf4 {[%clk
0:01:08.2]} 32. gxf4 {[%clk 0:01:46.4]} 32... Rd8 {[%clk 0:01:08.5]} 33. d6
{[%clk 0:01:47.5]} 33... Kf8 {[%clk 0:01:09.3]} 34. Bxb7 {[%clk 0:01:46.2]}
34... a5 {[%clk 0:01:07.3]} 35. Kg2 {[%clk 0:01:40.8]} 35... Kg7 {[%clk
0:01:01.8]} 36. Bc6 {[%clk 0:01:35.8]} 36... Kf6 {[%clk 0:01:00.7]} 37. d7
{[%clk 0:01:33.6]} 37... Ke7 {[%clk 0:01:00]} 38. Re1+ {[%clk 0:01:33.6]} 38...
Kd6 {[%clk 0:01:00]} 39. Re8 {[%clk 0:01:29.5]} 39... Kc7 {[%clk 0:01:00.1]} 40.
Rxd8 {[%clk 0:01:14.4]} 40... Kxd8 {[%clk 0:01:00.7]} 41. Bd5 {[%clk 0:01:03.9]}
41... f6 {[%clk 0:00:52.2]} 42. Bf7 {[%clk 0:00:59]} 42... Kxd7 {[%clk
0:00:52.1]} 43. Ba2 {[%clk 0:00:55.5]} 43... Kd6 {[%clk 0:00:51.3]} 44. h4
{[%clk 0:00:53.6]} 44... Be6 {[%clk 0:00:51.2]} 45. Bb1 {[%clk 0:00:52.7]} 45...
Bf7 {[%clk 0:00:52.1]} 46. Kf3 {[%clk 0:00:51.6]} 46... a4 {[%clk 0:00:52.8]}
47. Ke4 {[%clk 0:00:51]} 47... a3 {[%clk 0:00:52.3]} 48. f5 {[%clk 0:00:51.7]}
48... g5 {[%clk 0:00:50]} 49. hxg5 {[%clk 0:00:45.2]} 49... fxg5 {[%clk
0:00:50.5]} 50. f4 {[%clk 0:00:33.9]} 50... g4 {[%clk 0:00:47.5]} 51. Ke3 {[%clk
0:00:34.3]} 51... a2 {[%clk 0:00:47.7]} 52. Bxa2 {[%clk 0:00:35.1]} 52... Bxa2
{[%clk 0:00:48.8]} 53. Kf2 {[%clk 0:00:35.9]} 53... Ke7 {[%clk 0:00:49.5]} 54.
Kg3 {[%clk 0:00:36.8]} 54... Kf6 {[%clk 0:00:49.9]} 55. Kh4 {[%clk 0:00:37.7]}
55... Kxf5 {[%clk 0:00:49.3]} 56. Kg3 {[%clk 0:00:34.6]} 56... Bf7 {[%clk
0:00:48.7]} 57. Kh4 {[%clk 0:00:31.5]} 57... Kxf4 {[%clk 0:00:50.6]} 1/2-1

[Event "Torneo Nuevo Centro. Jornada 11"]
[Site "Chess.com"]
[Date "2020.08.28"]
[Round "5"]
[White "Yatseta Fernandez, Marc Kazymyr"]
[Black "Bercaru, Vlad Ionut"]
[Result "0-1"]
[WhiteElo "1503"]
[BlackElo "1744"]
[TimeControl "180+2"]
[EndTime "11:22:54 PDT"]
[Termination "Victoria de Rata29 por abandono"]

1. d4 {[%clk 0:03:00.4]} 1... Nf6 {[%clk 0:03:00.1]} 2. c4 {[%clk 0:03:00.9]}
2... g6 {[%clk 0:03:01]} 3. g3 {[%clk 0:03:00.9]} 3... Bg7 {[%clk 0:03:01.5]} 4.
Nf3 {[%clk 0:03:02.4]} 4... O-O {[%clk 0:03:02]} 5. Bg2 {[%clk 0:03:03.9]} 5...
d6 {[%clk 0:03:03.1]} 6. O-O {[%clk 0:03:05.2]} 6... Nc6 {[%clk 0:03:04.4]} 7.
Be3 {[%clk 0:03:05.1]} 7... a6 {[%clk 0:03:03]} 8. Nbd2 {[%clk 0:03:06.3]} 8...
Rb8 {[%clk 0:03:00.1]} 9. a4 {[%clk 0:03:05.6]} 9... Re8 {[%clk 0:02:56.2]} 10.
Qc2 {[%clk 0:02:59.5]} 10... Bf5 {[%clk 0:02:54.3]} 11. Qc1 {[%clk 0:02:55.7]}
11... Nd7 {[%clk 0:02:49.6]} 12. Nh4 {[%clk 0:02:50.1]} 12... e6 {[%clk
0:02:38.8]} 13. Nxf5 {[%clk 0:02:48.2]} 13... exf5 {[%clk 0:02:40.7]} 14. Nf3
{[%clk 0:02:43.1]} 14... Nf6 {[%clk 0:02:25.9]} 15. Nd2 {[%clk 0:02:24.7]} 15...
Ne4 {[%clk 0:02:22]} 16. Nxe4 {[%clk 0:02:19.2]} 16... fxe4 {[%clk 0:02:23.9]}
17. Rd1 {[%clk 0:02:17.1]} 17... Kh8 {[%clk 0:02:17.8]} 18. Qc2 {[%clk
0:01:46.2]} 18... f5 {[%clk 0:02:15.1]} 19. g4 {[%clk 0:01:36.7]} 19... Qd7
{[%clk 0:02:06.2]} 20. g5 {[%clk 0:01:31.6]} 20... Rf8 {[%clk 0:01:56.1]} 21.
Bf4 {[%clk 0:01:29.7]} 21... Nxd4 {[%clk 0:01:49.7]} 22. Qd2 {[%clk 0:01:13.2]}
22... Nb3 {[%clk 0:01:46.4]} 23. Qc2 {[%clk 0:01:13]} 23... Nxa1 {[%clk
0:01:45.3]} 24. Rxa1 {[%clk 0:01:13.1]} 24... Rbd8 {[%clk 0:01:37.1]} 25. Rd1
{[%clk 0:01:12.9]} 25... Qf7 {[%clk 0:01:27.6]} 26. f3 {[%clk 0:01:03.5]} 26...
exf3 {[%clk 0:01:22.4]} 27. Bxf3 {[%clk 0:01:03.4]} 27... Be5 {[%clk 0:01:21.4]}
28. Bd5 {[%clk 0:00:47.4]} 28... Qe7 {[%clk 0:01:09]} 29. e3 {[%clk 0:00:31.3]}
29... Bxf4 {[%clk 0:01:04.8]} 30. exf4 {[%clk 0:00:33.2]} 30... c6 {[%clk
0:00:42.4]} 31. Bg2 {[%clk 0:00:20.1]} 31... Qe3+ {[%clk 0:00:40.3]} 32. Kh1
{[%clk 0:00:20.3]} 32... Qxf4 {[%clk 0:00:38.7]} 33. Re1 {[%clk 0:00:19.6]}
33... Qxg5 {[%clk 0:00:32.8]} 34. Qc3+ {[%clk 0:00:15.6]} 34... Qf6 {[%clk
0:00:31]} 35. Qe3 {[%clk 0:00:14]} 35... Kg7 {[%clk 0:00:22.2]} 36. Qb6 {[%clk
0:00:11.8]} 36... Rd7 {[%clk 0:00:18.3]} 37. c5 {[%clk 0:00:10.1]} 37... d5
{[%clk 0:00:17.8]} 38. Qb3 {[%clk 0:00:08.6]} 38... Re7 {[%clk 0:00:16.5]} 39.
Qd1 {[%clk 0:00:07.1]} 39... Rfe8 {[%clk 0:00:14.8]} 40. Rxe7+ {[%clk
0:00:07.1]} 40... Rxe7 {[%clk 0:00:16.7]} 41. h3 {[%clk 0:00:08]} 41... Qe5
{[%clk 0:00:17.5]} 42. Qc2 {[%clk 0:00:07.1]} 42... Qe1+ {[%clk 0:00:17.6]} 43.
Kh2 {[%clk 0:00:07.9]} 43... Qe5+ {[%clk 0:00:17.5]} 44. Kh1 {[%clk 0:00:07.7]}
44... Qg3 {[%clk 0:00:17.1]} 45. Qc3+ {[%clk 0:00:05.2]} 45... Qxc3 {[%clk
0:00:17.1]} 46. bxc3 {[%clk 0:00:07.1]} 46... Re3 {[%clk 0:00:18.3]} 47. Kg1
{[%clk 0:00:05.9]} 47... Rxc3 {[%clk 0:00:18.8]} 0

[Event "Torneo Nuevo Centro. Jornada 11"]
[Site "Chess.com"]
[Date "2020.08.28"]
[Round "5"]
[White "Escalona Moncholi, Felix"]
[Black "Sampedro Roig, Josep Francesc"]
[Result "1-0"]
[WhiteElo "2113"]
[BlackElo "1846"]
[TimeControl "180+2"]
[EndTime "11:23:09 PDT"]
[Termination "Victoria de SchachSpielerESP por tiempo"]

1. e4 {[%clk 0:03:01.9]} 1... Nf6 {[%clk 0:03:01.9]} 2. e5 {[%clk 0:03:02.6]}
2... Nd5 {[%clk 0:03:02.7]} 3. d4 {[%clk 0:03:03.7]} 3... d6 {[%clk 0:03:03.7]}
4. Nf3 {[%clk 0:03:04.6]} 4... Bg4 {[%clk 0:03:04.1]} 5. c4 {[%clk 0:03:03.3]}
5... Nb6 {[%clk 0:03:04.8]} 6. exd6 {[%clk 0:03:04.5]} 6... cxd6 {[%clk
0:03:05.7]} 7. Be2 {[%clk 0:03:04.9]} 7... e6 {[%clk 0:03:06.6]} 8. Nc3 {[%clk
0:03:05.3]} 8... Be7 {[%clk 0:03:07.6]} 9. Be3 {[%clk 0:03:05.6]} 9... O-O
{[%clk 0:03:08.5]} 10. O-O {[%clk 0:03:06.3]} 10... Nc6 {[%clk 0:03:08.6]} 11.
b3 {[%clk 0:03:07.2]} 11... e5 {[%clk 0:03:03.6]} 12. d5 {[%clk 0:03:05.2]}
12... Nb8 {[%clk 0:03:01.4]} 13. h3 {[%clk 0:03:00.1]} 13... Bh5 {[%clk
0:03:01.5]} 14. Nd2 {[%clk 0:02:46.3]} 14... Bg6 {[%clk 0:02:57.1]} 15. f4
{[%clk 0:02:46.7]} 15... f5 {[%clk 0:02:46.1]} 16. Rc1 {[%clk 0:02:27.9]} 16...
N6d7 {[%clk 0:02:28.2]} 17. Bd3 {[%clk 0:02:19.8]} 17... Na6 {[%clk 0:02:25.1]}
18. Bb1 {[%clk 0:02:18]} 18... b6 {[%clk 0:02:14.2]} 19. a3 {[%clk 0:02:16.3]}
19... Nac5 {[%clk 0:01:59.8]} 20. b4 {[%clk 0:02:15.3]} 20... Nb7 {[%clk
0:02:00.5]} 21. g4 {[%clk 0:01:47.2]} 21... exf4 {[%clk 0:02:00]} 22. Bxf4
{[%clk 0:01:32.7]} 22... Bg5 {[%clk 0:01:50.6]} 23. Nb5 {[%clk 0:01:15.5]} 23...
Bxf4 {[%clk 0:01:48]} 24. Rxf4 {[%clk 0:01:17.4]} 24... fxg4 {[%clk 0:01:35.6]}
25. Qxg4 {[%clk 0:01:12.6]} 25... Ne5 {[%clk 0:01:33.7]} 26. Rxf8+ {[%clk
0:01:00.5]} 26... Qxf8 {[%clk 0:01:34.5]} 27. Qg3 {[%clk 0:00:58.5]} 27... Bxb1
{[%clk 0:01:33.7]} 28. Rxb1 {[%clk 0:00:52.8]} 28... Qe7 {[%clk 0:01:09.5]} 29.
Nd4 {[%clk 0:00:48.4]} 29... Rf8 {[%clk 0:01:01.2]} 30. Ne6 {[%clk 0:00:47.9]}
30... Rf6 {[%clk 0:00:58.4]} 31. Kh2 {[%clk 0:00:44]} 31... Rg6 {[%clk
0:00:55.4]} 32. Qf4 {[%clk 0:00:36.5]} 32... Rf6 {[%clk 0:00:52.8]} 33. Qe4
{[%clk 0:00:34.9]} 33... Nd8 {[%clk 0:00:51.1]} 34. Ng5 {[%clk 0:00:30.3]} 34...
Rh6 {[%clk 0:00:47.7]} 35. Rg1 {[%clk 0:00:24]} 35... Ndf7 {[%clk 0:00:45]} 36.
Ne6 {[%clk 0:00:21.5]} 36... g6 {[%clk 0:00:34.8]} 37. c5 {[%clk 0:00:20.6]}
37... bxc5 {[%clk 0:00:30.7]} 38. bxc5 {[%clk 0:00:22.5]} 38... dxc5 {[%clk
0:00:30.8]} 39. Rf1 {[%clk 0:00:19.4]} 39... Qd6 {[%clk 0:00:29]} 40. Kg2 {[%clk
0:00:18.8]} 40... Qe7 {[%clk 0:00:25.4]} 41. Qf4 {[%clk 0:00:19.1]} 41... Rh4
{[%clk 0:00:25.5]} 42. Qf2 {[%clk 0:00:17]} 42... c4 {[%clk 0:00:21.8]} 43. Rb1
{[%clk 0:00:13.6]} 43... h5 {[%clk 0:00:14.8]} 44. Rb8+ {[%clk 0:00:12.1]} 44...
Kh7 {[%clk 0:00:14.7]} 45. Nf1 {[%clk 0:00:09.6]} 45... Ng5 {[%clk 0:00:12.3]}
46. Ne3 {[%clk 0:00:05]} 46... Nxe6 {[%clk 0:00:11]} 47. dxe6 {[%clk 0:00:06.9]}
47... Qg5+ {[%clk 0:00:09]} 48. Qg3 {[%clk 0:00:07.2]} 48... Qxg3+ {[%clk
0:00:05.5]} 49. Kxg3 {[%clk 0:00:09.1]} 49... Re4 {[%clk 0:00:06.2]} 50. e7
{[%clk 0:00:10.3]} 50... Rxe3+ {[%clk 0:00:03.4]} 51. Kf4 {[%clk 0:00:11.5]} 1

[Event "Torneo Nuevo Centro. Jornada 11"]
[Site "Chess.com"]
[Date "2020.08.28"]
[Round "5"]
[White "Kovacevic, Slobodan"]
[Black "Carbonell Sancho, Marc"]
[Result "0-1"]
[WhiteElo "2239"]
[BlackElo "1941"]
[TimeControl "180+2"]
[EndTime "11:23:10 PDT"]
[Termination "Victoria de AkaliGOD por tiempo"]

1. d4 {[%clk 0:03:00.7]} 1... Nf6 {[%clk 0:02:59.4]} 2. Nf3 {[%clk 0:02:59.5]}
2... g6 {[%clk 0:02:56.8]} 3. Bg5 {[%clk 0:02:58.6]} 3... Bg7 {[%clk 0:02:57]}
4. Nbd2 {[%clk 0:02:57.8]} 4... O-O {[%clk 0:02:55.5]} 5. c3 {[%clk 0:02:57.3]}
5... d6 {[%clk 0:02:53.9]} 6. e4 {[%clk 0:02:55.8]} 6... Nbd7 {[%clk 0:02:52.4]}
7. Qc2 {[%clk 0:02:54.9]} 7... c5 {[%clk 0:02:51.8]} 8. e5 {[%clk 0:02:51.7]}
8... Ne8 {[%clk 0:02:46.6]} 9. exd6 {[%clk 0:02:41.1]} 9... Nxd6 {[%clk
0:02:44.4]} 10. Be2 {[%clk 0:02:30.4]} 10... b6 {[%clk 0:02:33.6]} 11. O-O
{[%clk 0:02:26.9]} 11... Bb7 {[%clk 0:02:32.9]} 12. Rad1 {[%clk 0:02:20.6]}
12... Rc8 {[%clk 0:02:32.6]} 13. dxc5 {[%clk 0:02:19.2]} 13... Nxc5 {[%clk
0:02:34.5]} 14. Rfe1 {[%clk 0:02:15.3]} 14... Qc7 {[%clk 0:02:34.2]} 15. Bf1
{[%clk 0:02:09.7]} 15... Rfe8 {[%clk 0:02:30.6]} 16. Bf4 {[%clk 0:02:05.4]}
16... Qb8 {[%clk 0:02:19.8]} 17. h3 {[%clk 0:02:03.7]} 17... Qa8 {[%clk
0:02:19.1]} 18. Ne5 {[%clk 0:01:59.7]} 18... f6 {[%clk 0:02:12.1]} 19. Nef3
{[%clk 0:01:55.9]} 19... e5 {[%clk 0:02:13.1]} 20. Bh2 {[%clk 0:01:51.9]} 20...
Kh8 {[%clk 0:02:02.5]} 21. b4 {[%clk 0:01:42.2]} 21... Ne6 {[%clk 0:01:58.8]}
22. Qb3 {[%clk 0:01:40.8]} 22... Bd5 {[%clk 0:01:52.5]} 23. c4 {[%clk
0:01:39.2]} 23... Bb7 {[%clk 0:01:53.4]} 24. a3 {[%clk 0:01:36.9]} 24... e4
{[%clk 0:01:38.6]} 25. Bxd6 {[%clk 0:01:29.4]} 25... exf3 {[%clk 0:01:39.2]} 26.
g3 {[%clk 0:01:26.6]} 26... Nd4 {[%clk 0:01:36.4]} 27. Qd3 {[%clk 0:01:16.4]}
27... f5 {[%clk 0:01:37.1]} 28. Rxe8+ {[%clk 0:01:14.5]} 28... Rxe8 {[%clk
0:01:37]} 29. c5 {[%clk 0:01:13.4]} 29... bxc5 {[%clk 0:01:37.3]} 30. Bxc5
{[%clk 0:01:12.3]} 30... Ne2+ {[%clk 0:01:36.4]} 31. Kh1 {[%clk 0:01:10.8]}
31... h5 {[%clk 0:01:30.5]} 32. h4 {[%clk 0:01:08.9]} 32... Nc3 {[%clk
0:01:22.1]} 33. Rc1 {[%clk 0:01:06]} 33... Ne4 {[%clk 0:01:21.6]} 34. Be3 {[%clk
0:01:04.2]} 34... Nf6 {[%clk 0:01:08.9]} 35. Nc4 {[%clk 0:01:03.1]} 35... Be4
{[%clk 0:01:03.7]} 36. Qd2 {[%clk 0:01:01.6]} 36... Rd8 {[%clk 0:01:01.2]} 37.
Qe1 {[%clk 0:00:59]} 37... Qd5 {[%clk 0:00:46.4]} 38. Bg5 {[%clk 0:00:57.6]}
38... Rc8 {[%clk 0:00:37.7]} 39. Ne3 {[%clk 0:00:53.4]} 39... Rxc1 {[%clk
0:00:32.9]} 40. Qxc1 {[%clk 0:00:51.9]} 40... Qd6 {[%clk 0:00:33.8]} 41. Qc8+
{[%clk 0:00:49.2]} 41... Kh7 {[%clk 0:00:34.6]} 42. Qb7 {[%clk 0:00:48.2]} 42...
Bxb7 {[%clk 0:00:34.8]} 43. Bf4 {[%clk 0:00:12.9]} 43... Ng4 {[%clk 0:00:21.8]}
44. Bxd6 {[%clk 0:00:09.5]} 44... Nxf2+ {[%clk 0:00:22.9]} 45. Kg1 {[%clk
0:00:08.1]} 45... Ne4 {[%clk 0:00:24.8]} 46. Bf4 {[%clk 0:00:07]} 46... Bd4
{[%clk 0:00:25.7]} 47. Kh2 {[%clk 0:00:06.8]} 47... Nd2 {[%clk 0:00:24.8]} 48.
Bd3 {[%clk 0:00:05.3]} 48... f2 {[%clk 0:00:26]} 49. Nf1 {[%clk 0:00:04.4]}
49... Nxf1+ {[%clk 0:00:25.1]} 50. Bxf1 {[%clk 0:00:03.6]} 50... Bc6 {[%clk
0:00:26.4]} 51. b5 {[%clk 0:00:02.2]} 51... Be4 {[%clk 0:00:24.4]} 52. a4 {[%clk
0:00:02.3]} 52... Bc2 {[%clk 0:00:21.8]} 0

[Event "Torneo Nuevo Centro. Jornada 11"]
[Site "Chess.com"]
[Date "2020.08.28"]
[Round "5"]
[White "Aymerich Rosell, Pablo"]
[Black "Donate Moreno, Silvia"]
[Result "0-1"]
[WhiteElo "1991"]
[BlackElo "1864"]
[TimeControl "180+2"]
[EndTime "11:23:30 PDT"]
[Termination "Victoria de monetesSAL por tiempo"]

1. e4 {[%clk 0:03:01.9]} 1... c5 {[%clk 0:03:00.4]} 2. Nf3 {[%clk 0:03:02.5]}
2... d6 {[%clk 0:03:01.3]} 3. d4 {[%clk 0:03:03.1]} 3... cxd4 {[%clk 0:03:03.2]}
4. Nxd4 {[%clk 0:03:04.2]} 4... Nf6 {[%clk 0:03:04.2]} 5. Nc3 {[%clk 0:03:05.2]}
5... a6 {[%clk 0:03:05.2]} 6. f3 {[%clk 0:03:04.6]} 6... e5 {[%clk 0:03:04.1]}
7. Nb3 {[%clk 0:03:05.4]} 7... Be6 {[%clk 0:03:02.5]} 8. Be3 {[%clk 0:03:05.7]}
8... Be7 {[%clk 0:02:59.5]} 9. Qd2 {[%clk 0:03:05]} 9... h6 {[%clk 0:02:59.8]}
10. O-O-O {[%clk 0:03:05.1]} 10... O-O {[%clk 0:02:55.5]} 11. g4 {[%clk
0:03:05.8]} 11... Nfd7 {[%clk 0:02:51.2]} 12. Nd5 {[%clk 0:02:54.3]} 12... Bh4
{[%clk 0:02:45.2]} 13. Kb1 {[%clk 0:02:43.4]} 13... Nc6 {[%clk 0:02:38.4]} 14.
h3 {[%clk 0:02:36]} 14... Rc8 {[%clk 0:02:13.5]} 15. f4 {[%clk 0:02:36]} 15...
Bxd5 {[%clk 0:02:10.1]} 16. exd5 {[%clk 0:02:36.2]} 16... exf4 {[%clk
0:01:59.8]} 17. Bxf4 {[%clk 0:02:26]} 17... Nce5 {[%clk 0:02:00.2]} 18. Nd4
{[%clk 0:02:17.7]} 18... Nc5 {[%clk 0:01:35.6]} 19. Nf5 {[%clk 0:02:08.1]} 19...
Bf6 {[%clk 0:01:34.9]} 20. Be2 {[%clk 0:01:55.9]} 20... Qb6 {[%clk 0:01:15.8]}
21. h4 {[%clk 0:01:46.8]} 21... Na4 {[%clk 0:00:55.2]} 22. c4 {[%clk 0:00:50.3]}
22... Nxc4 {[%clk 0:00:46.1]} 23. Bxc4 {[%clk 0:00:49.8]} 23... Nc3+ {[%clk
0:00:33.7]} 24. Ka1 {[%clk 0:00:46.1]} 24... Nxd1 {[%clk 0:00:32.3]} 25. Rxd1
{[%clk 0:00:37.1]} 25... Rxc4 {[%clk 0:00:30.2]} 26. g5 {[%clk 0:00:23.8]} 26...
Bxb2+ {[%clk 0:00:19.1]} 27. Qxb2 {[%clk 0:00:21.9]} 27... Qxb2+ {[%clk
0:00:21]} 28. Kxb2 {[%clk 0:00:22.7]} 28... Rxf4 {[%clk 0:00:22.3]} 29. Nxd6
{[%clk 0:00:23.5]} 29... Rxh4 {[%clk 0:00:21.7]} 30. gxh6 {[%clk 0:00:24.1]}
30... Rxh6 {[%clk 0:00:22.4]} 31. Nf5 {[%clk 0:00:18]} 31... Rf6 {[%clk
0:00:22]} 32. Ne7+ {[%clk 0:00:17.6]} 32... Kh7 {[%clk 0:00:22.3]} 33. d6 {[%clk
0:00:16.8]} 33... Rd8 {[%clk 0:00:23.1]} 34. d7 {[%clk 0:00:15.3]} 34... g6
{[%clk 0:00:21.2]} 35. Nc8 {[%clk 0:00:09.1]} 35... Rf2+ {[%clk 0:00:19.2]} 36.
Kb3 {[%clk 0:00:09.6]} 36... Rf3+ {[%clk 0:00:19.7]} 37. Kb2 {[%clk 0:00:10.2]}
37... Rf2+ {[%clk 0:00:20.2]} 38. Kb3 {[%clk 0:00:11.2]} 38... Rf5 {[%clk
0:00:20.1]} 39. a4 {[%clk 0:00:08.3]} 39... Rc5 {[%clk 0:00:17.8]} 40. Nb6
{[%clk 0:00:06.8]} 40... Rc7 {[%clk 0:00:18.3]} 41. a5 {[%clk 0:00:06.6]} 41...
Kg7 {[%clk 0:00:18.8]} 42. Rd5 {[%clk 0:00:06.8]} 42... Kf6 {[%clk 0:00:17.9]}
43. Kb4 {[%clk 0:00:06.8]} 43... Ke6 {[%clk 0:00:18.7]} 44. Rd1 {[%clk
0:00:06.6]} 44... Rc6 {[%clk 0:00:18.6]} 45. Re1+ {[%clk 0:00:07]} 45... Kf6
{[%clk 0:00:19.3]} 46. Re8 {[%clk 0:00:07.9]} 46... Rxb6+ {[%clk 0:00:20.1]} 47.
axb6 {[%clk 0:00:04.7]} 47... Rxd7 {[%clk 0:00:22]} 48. Rc8 {[%clk 0:00:05.1]}
48... Ke6 {[%clk 0:00:21.2]} 49. Rc7 {[%clk 0:00:06]} 49... g5 {[%clk
0:00:21.7]} 50. Rc4 {[%clk 0:00:05.9]} 50... f5 {[%clk 0:00:22.1]} 51. Rc1
{[%clk 0:00:05.3]} 51... g4 {[%clk 0:00:22.3]} 52. Re1+ {[%clk 0:00:06.4]} 52...
Kf6 {[%clk 0:00:23.1]} 53. Kc5 {[%clk 0:00:06.8]} 53... g3 {[%clk 0:00:21.5]}
54. Rg1 {[%clk 0:00:06.7]} 54... f4 {[%clk 0:00:22.1]} 55. Rf1 {[%clk
0:00:07.6]} 55... Kg5 {[%clk 0:00:22.9]} 56. Rd1 {[%clk 0:00:09.5]} 56... Rxd1
{[%clk 0:00:22.6]} 0